[Event "Titled Tuesday Blitz April 18 Late 2023"]
[White "Gonzalez Zamora, Juan Carlos"]
[Black "Loiacono, Antonio"]
[WhiteFideId "3507548"]
[BlackFideId "895415"]
[WhiteElo "2535"]
[BlackElo "2257"]
[Result "0-1"]
[Round "06"]
[TimeControl "180+2"]
[Date "2023.04.18"]
[WhiteClock "0:00:04"]
[BlackClock "0:00:19"]

1. e4 {[%clk 0:03:00]}  e5 {[%clk 0:02:58]} 2. Nf3 {[%clk 0:03:00]}  Nc6 {[%clk 0:02:58]} 3. Bb5 {[%clk 0:03:00]}  g6 {[%clk 0:02:59]} 4. O-O {[%clk 0:02:58]}  Bg7 {[%clk 0:02:59]} 5. c3 {[%clk 0:02:59]}  a6 {[%clk 0:02:57]} 6. Ba4 {[%clk 0:02:58]}  Nge7 {[%clk 0:02:57]} 7. d4 {[%clk 0:02:57]}  exd4 {[%clk 0:02:58]} 8. cxd4 {[%clk 0:02:58]}  b5 {[%clk 0:02:58]} 9. Bb3 {[%clk 0:02:57]}  O-O {[%clk 0:02:57]} 10. Nc3 {[%clk 0:02:56]}  d6 {[%clk 0:02:56]} 11. h3 {[%clk 0:02:56]}  Na5 {[%clk 0:02:56]} 12. Bc2 {[%clk 0:02:56]}  Bb7 {[%clk 0:02:56]} 13. Re1 {[%clk 0:02:55]}  c5 {[%clk 0:02:56]} 14. d5 {[%clk 0:02:27]}  Nc4 {[%clk 0:02:53]} 15. Rb1 {[%clk 0:02:26]}  Re8 {[%clk 0:02:46]} 16. Bb3 {[%clk 0:02:22]}  Na5 {[%clk 0:02:40]} 17. Bc2 {[%clk 0:02:21]}  Nc4 {[%clk 0:02:41]} 18. Bb3 {[%clk 0:02:02]}  Ne5 {[%clk 0:02:40]} 19. Nxe5 {[%clk 0:02:01]}  Bxe5 {[%clk 0:02:37]} 20. Bg5 {[%clk 0:02:00]}  Qd7 {[%clk 0:02:27]} 21. a4 {[%clk 0:01:52]}  Bg7 {[%clk 0:02:16]} 22. Qd2 {[%clk 0:01:43]}  f5 {[%clk 0:02:06]} 23. Bh6 {[%clk 0:01:28]}  Bh8 {[%clk 0:02:05]} 24. e5 {[%clk 0:01:15]}  dxe5 {[%clk 0:01:50]} 25. axb5 {[%clk 0:01:09]}  axb5 {[%clk 0:01:45]} 26. d6+ {[%clk 0:00:59]}  c4 {[%clk 0:01:44]} 27. dxe7 {[%clk 0:00:49]}  Qxd2 {[%clk 0:01:42]} 28. Bxd2 {[%clk 0:00:50]}  cxb3 {[%clk 0:01:41]} 29. Nxb5 {[%clk 0:00:50]}  Rxe7 {[%clk 0:01:39]} 30. Rec1 {[%clk 0:00:49]}  Rb8 {[%clk 0:01:28]} 31. Na3 {[%clk 0:00:39]}  Bf6 {[%clk 0:01:18]} 32. Bc3 {[%clk 0:00:38]}  Be4 {[%clk 0:01:10]} 33. Ra1 {[%clk 0:00:37]}  Rc7 {[%clk 0:01:06]} 34. Ba5 {[%clk 0:00:29]}  Ra7 {[%clk 0:01:02]} 35. Bc3 {[%clk 0:00:22]}  Bd3 {[%clk 0:00:41]} 36. Rd1 {[%clk 0:00:18]}  Rd8 {[%clk 0:00:39]} 37. f4 {[%clk 0:00:15]}  Re7 {[%clk 0:00:30]} 38. Re1 {[%clk 0:00:15]}  Be4 {[%clk 0:00:26]} 39. Nc4 {[%clk 0:00:12]}  Rc8 {[%clk 0:00:18]} 40. Bxe5 {[%clk 0:00:11]}  Rxc4 {[%clk 0:00:16]} 41. Bxf6 {[%clk 0:00:11]}  Rd7 {[%clk 0:00:16]} 42. Rad1 {[%clk 0:00:06]}  Rxd1 {[%clk 0:00:15]} 43. Rxd1 {[%clk 0:00:07]}  Rc2 {[%clk 0:00:15]} 44. g4 {[%clk 0:00:06]}  Rg2+ {[%clk 0:00:14]} 45. Kf1 {[%clk 0:00:06]}  Rh2 {[%clk 0:00:15]} 46. g5 {[%clk 0:00:03]}  Rh1+ {[%clk 0:00:15]} 47. Ke2 {[%clk 0:00:03]}  Bf3+ {[%clk 0:00:15]} 48. Kxf3 {[%clk 0:00:04]}  Rxd1 {[%clk 0:00:16]} 49. Ke3 {[%clk 0:00:04]}  Rd5 {[%clk 0:00:16]} 50. h4 {[%clk 0:00:04]}  Kf7 {[%clk 0:00:16]} 51. Ke2 {[%clk 0:00:04]}  Ke6 {[%clk 0:00:17]} 52. Bc3 {[%clk 0:00:04]}  Kd7 {[%clk 0:00:17]} 53. Ke3 {[%clk 0:00:04]}  Kc6 {[%clk 0:00:18]} 54. Ke2 {[%clk 0:00:04]}  Kb5 {[%clk 0:00:18]} 55. Ke3 {[%clk 0:00:04]}  Kc4 {[%clk 0:00:19]} 56. Bg7 {[%clk 0:00:05]}  Rd3+ {[%clk 0:00:18]} 57. Ke2 {[%clk 0:00:05]}  Rh3 {[%clk 0:00:19]} 58. Bf6 {[%clk 0:00:04]}  Rxh4 {[%clk 0:00:19]} 0-1


[Site "https://www.chess.com"]

[Event "Titled Tuesday Blitz April 18 Late 2023"]
[White "koncheto"]
[Black "Prieto Aranguren, Alain"]
[BlackFideId "2268906"]
[WhiteElo "2524"]
[BlackElo "2209"]
[Result "1-0"]
[Round "06"]
[TimeControl "180+2"]
[Date "2023.04.18"]
[WhiteClock "0:02:25"]
[BlackClock "0:02:28"]

1. e4 {[%clk 0:02:57]}  c6 {[%clk 0:02:59]} 2. d4 {[%clk 0:02:57]}  d5 {[%clk 0:03:00]} 3. Nc3 {[%clk 0:02:58]}  dxe4 {[%clk 0:02:59]} 4. Nxe4 {[%clk 0:02:59]}  Nf6 {[%clk 0:02:59]} 5. Nxf6+ {[%clk 0:02:59]}  exf6 {[%clk 0:03:00]} 6. c3 {[%clk 0:03:00]}  Bd6 {[%clk 0:03:00]} 7. Bd3 {[%clk 0:03:00]}  O-O {[%clk 0:03:00]} 8. Ne2 {[%clk 0:03:01]}  Re8 {[%clk 0:03:00]} 9. O-O {[%clk 0:03:01]}  Nd7 {[%clk 0:02:59]} 10. f4 {[%clk 0:03:02]}  Nf8 {[%clk 0:02:57]} 11. Ng3 {[%clk 0:02:57]}  Bc7 {[%clk 0:02:50]} 12. f5 {[%clk 0:02:50]}  b6 {[%clk 0:02:43]} 13. Nh5 {[%clk 0:02:49]}  Bb7 {[%clk 0:02:35]} 14. Qg4 {[%clk 0:02:47]}  g6 {[%clk 0:02:30]} 15. fxg6 {[%clk 0:02:47]}  hxg6 {[%clk 0:02:28]} 16. Nxf6+ {[%clk 0:02:48]}  Kg7 {[%clk 0:02:28]} 17. Qh4 {[%clk 0:02:25]} 1-0


[Site "https://www.chess.com"]

[Event "Titled Tuesday Blitz April 18 Late 2023"]
[White "Florianovitz, Derlei Alex"]
[Black "Jimenez Almeida, Luis David"]
[WhiteFideId "2114178"]
[BlackFideId "22242244"]
[WhiteElo "1953"]
[BlackElo "2245"]
[Result "1/2-1/2"]
[Round "06"]
[TimeControl "180+2"]
[Date "2023.04.18"]
[WhiteClock "0:00:19"]
[BlackClock "0:00:18"]

1. e4 {[%clk 0:03:00]}  c6 {[%clk 0:02:55]} 2. Nf3 {[%clk 0:03:01]}  g6 {[%clk 0:02:55]} 3. d4 {[%clk 0:03:00]}  Na6 {[%clk 0:02:55]} 4. c4 {[%clk 0:03:00]}  Bg7 {[%clk 0:02:54]} 5. Nc3 {[%clk 0:02:59]}  Nc7 {[%clk 0:02:54]} 6. Be3 {[%clk 0:02:55]}  d6 {[%clk 0:02:54]} 7. Qd2 {[%clk 0:02:53]}  Nf6 {[%clk 0:02:54]} 8. h3 {[%clk 0:02:53]}  a5 {[%clk 0:02:52]} 9. Bh6 {[%clk 0:02:52]}  O-O {[%clk 0:02:52]} 10. Bxg7 {[%clk 0:02:51]}  Kxg7 {[%clk 0:02:53]} 11. Bd3 {[%clk 0:02:50]}  Re8 {[%clk 0:02:47]} 12. O-O {[%clk 0:02:49]}  e5 {[%clk 0:02:47]} 13. Rae1 {[%clk 0:02:48]}  Qe7 {[%clk 0:02:47]} 14. d5 {[%clk 0:02:45]}  Nh5 {[%clk 0:02:44]} 15. Bc2 {[%clk 0:02:28]}  Nf4 {[%clk 0:02:43]} 16. c5 {[%clk 0:02:23]}  Rd8 {[%clk 0:02:24]} 17. cxd6 {[%clk 0:02:16]}  Rxd6 {[%clk 0:02:24]} 18. Rd1 {[%clk 0:02:14]}  c5 {[%clk 0:02:23]} 19. Ne2 {[%clk 0:02:04]}  g5 {[%clk 0:02:17]} 20. Nxf4 {[%clk 0:02:03]}  gxf4 {[%clk 0:02:17]} 21. Qe2 {[%clk 0:01:59]}  b6 {[%clk 0:02:13]} 22. Bd3 {[%clk 0:01:56]}  Ne8 {[%clk 0:02:07]} 23. Nh2 {[%clk 0:01:55]}  Rg6 {[%clk 0:02:06]} 24. Kh1 {[%clk 0:01:45]}  Nd6 {[%clk 0:02:06]} 25. b3 {[%clk 0:01:32]}  Bd7 {[%clk 0:01:56]} 26. Rg1 {[%clk 0:01:19]}  Rg8 {[%clk 0:01:55]} 27. g3 {[%clk 0:01:17]}  fxg3 {[%clk 0:01:37]} 28. Rxg3 {[%clk 0:01:18]}  Kh8 {[%clk 0:01:32]} 29. Rdg1 {[%clk 0:01:13]}  Bxh3 {[%clk 0:01:27]} 30. Qh5 {[%clk 0:01:06]}  Bd7 {[%clk 0:01:05]} 31. Nf3 {[%clk 0:00:59]}  Rxg3 {[%clk 0:00:59]} 32. Rxg3 {[%clk 0:00:58]}  Rxg3 {[%clk 0:00:58]} 33. fxg3 {[%clk 0:00:57]}  f6 {[%clk 0:00:56]} 34. Nh4 {[%clk 0:00:54]}  Qf7 {[%clk 0:00:51]} 35. Qf3 {[%clk 0:00:47]}  Qg7 {[%clk 0:00:44]} 36. Kh2 {[%clk 0:00:45]}  Kg8 {[%clk 0:00:43]} 37. Bf1 {[%clk 0:00:38]}  Kf8 {[%clk 0:00:38]} 38. Bh3 {[%clk 0:00:37]}  Bxh3 {[%clk 0:00:36]} 39. Kxh3 {[%clk 0:00:38]}  Qg5 {[%clk 0:00:31]} 40. Qf1 {[%clk 0:00:33]}  h5 {[%clk 0:00:27]} 41. Qa6 {[%clk 0:00:30]}  Nxe4 {[%clk 0:00:20]} 42. Qc8+ {[%clk 0:00:28]}  Kg7 {[%clk 0:00:20]} 43. Qd7+ {[%clk 0:00:27]}  Kh6 {[%clk 0:00:20]} 44. Nf5+ {[%clk 0:00:22]}  Kg6 {[%clk 0:00:20]} 45. Nh4+ {[%clk 0:00:22]}  Kh6 {[%clk 0:00:20]} 46. Nf5+ {[%clk 0:00:22]}  Kg6 {[%clk 0:00:20]} 47. Nh4+ {[%clk 0:00:19]}  Kh6 {[%clk 0:00:18]} 1/2-1/2


[Site "https://www.chess.com"]

[Event "Titled Tuesday Blitz April 18 Late 2023"]
[White "Weetik, Vjacheslav"]
[Black "Przybylski, Wojciech"]
[WhiteFideId "4153472"]
[BlackFideId "1117599"]
[WhiteElo "2469"]
[BlackElo "2222"]
[Result "1-0"]
[Round "06"]
[TimeControl "180+2"]
[Date "2023.04.18"]
[WhiteClock "0:00:05"]
[BlackClock "0:00:03"]

1. d4 {[%clk 0:01:47]}  Nf6 {[%clk 0:02:58]} 2. Bf4 {[%clk 0:01:45]}  d5 {[%clk 0:02:58]} 3. e3 {[%clk 0:01:45]}  Bf5 {[%clk 0:02:56]} 4. Nc3 {[%clk 0:01:43]}  c6 {[%clk 0:02:56]} 5. f3 {[%clk 0:01:43]}  h6 {[%clk 0:02:54]} 6. Nge2 {[%clk 0:01:43]}  Nbd7 {[%clk 0:02:53]} 7. g4 {[%clk 0:01:42]}  Bg6 {[%clk 0:02:52]} 8. h4 {[%clk 0:01:42]}  e6 {[%clk 0:02:51]} 9. Bg3 {[%clk 0:01:37]}  Qb6 {[%clk 0:02:47]} 10. Rb1 {[%clk 0:01:27]}  Be7 {[%clk 0:02:44]} 11. Nf4 {[%clk 0:01:27]}  Bh7 {[%clk 0:02:41]} 12. g5 {[%clk 0:01:27]}  Ng8 {[%clk 0:02:29]} 13. g6 {[%clk 0:01:24]}  Bxg6 {[%clk 0:02:26]} 14. Nxg6 {[%clk 0:01:24]}  fxg6 {[%clk 0:02:27]} 15. Qd3 {[%clk 0:01:18]}  Nf8 {[%clk 0:02:26]} 16. Bh3 {[%clk 0:01:12]}  Nf6 {[%clk 0:02:16]} 17. Rg1 {[%clk 0:00:56]}  Qa6 {[%clk 0:01:52]} 18. Qxa6 {[%clk 0:00:51]}  bxa6 {[%clk 0:01:52]} 19. e4 {[%clk 0:00:36]}  Nh5 {[%clk 0:01:48]} 20. Bf2 {[%clk 0:00:36]}  Bb4 {[%clk 0:01:38]} 21. a3 {[%clk 0:00:36]}  Bd6 {[%clk 0:01:21]} 22. Kd2 {[%clk 0:00:19]}  Bf4+ {[%clk 0:01:16]} 23. Kd3 {[%clk 0:00:14]}  Bh2 {[%clk 0:01:14]} 24. Rh1 {[%clk 0:00:15]}  Bd6 {[%clk 0:01:10]} 25. Ne2 {[%clk 0:00:14]}  Kf7 {[%clk 0:01:04]} 26. Rhg1 {[%clk 0:00:14]}  Rd8 {[%clk 0:00:59]} 27. c4 {[%clk 0:00:14]}  Nd7 {[%clk 0:00:38]} 28. Rbc1 {[%clk 0:00:12]}  dxc4+ {[%clk 0:00:34]} 29. Rxc4 {[%clk 0:00:12]}  c5 {[%clk 0:00:34]} 30. Kc2 {[%clk 0:00:12]}  cxd4 {[%clk 0:00:23]} 31. Nxd4 {[%clk 0:00:12]}  Nf4 {[%clk 0:00:23]} 32. Bf1 {[%clk 0:00:11]}  Ne5 {[%clk 0:00:24]} 33. Rc3 {[%clk 0:00:11]}  Be7 {[%clk 0:00:21]} 34. Be3 {[%clk 0:00:11]}  g5 {[%clk 0:00:21]} 35. Kb1 {[%clk 0:00:10]}  Bf6 {[%clk 0:00:20]} 36. Rc7+ {[%clk 0:00:10]}  Rd7 {[%clk 0:00:20]} 37. Rxd7+ {[%clk 0:00:10]}  Nxd7 {[%clk 0:00:21]} 38. hxg5 {[%clk 0:00:05]}  hxg5 {[%clk 0:00:20]} 39. Ne2 {[%clk 0:00:06]}  Nd3 {[%clk 0:00:16]} 40. Nd4 {[%clk 0:00:04]}  N3e5 {[%clk 0:00:15]} 41. Bxa6 {[%clk 0:00:05]}  Nc5 {[%clk 0:00:15]} 42. Be2 {[%clk 0:00:03]}  Rh2 {[%clk 0:00:14]} 43. Rc1 {[%clk 0:00:04]}  Ncd7 {[%clk 0:00:13]} 44. Rc7 {[%clk 0:00:04]}  Rh1+ {[%clk 0:00:13]} 45. Ka2 {[%clk 0:00:04]}  Ke8 {[%clk 0:00:13]} 46. Bb5 {[%clk 0:00:05]}  Kd8 {[%clk 0:00:12]} 47. Rxa7 {[%clk 0:00:06]}  Re1 {[%clk 0:00:10]} 48. Nxe6+ {[%clk 0:00:06]}  Ke7 {[%clk 0:00:10]} 49. Nc5 {[%clk 0:00:06]}  Rxe3 {[%clk 0:00:09]} 50. Nxd7 {[%clk 0:00:07]}  Nxd7 {[%clk 0:00:09]} 51. Bxd7 {[%clk 0:00:08]}  Kd6 {[%clk 0:00:08]} 52. Bg4 {[%clk 0:00:08]}  Re2 {[%clk 0:00:08]} 53. Rb7 {[%clk 0:00:09]}  Kc6 {[%clk 0:00:08]} 54. Rb4 {[%clk 0:00:09]}  Kc5 {[%clk 0:00:08]} 55. Rb3 {[%clk 0:00:09]}  Bd4 {[%clk 0:00:08]} 56. Be6 {[%clk 0:00:08]}  g6 {[%clk 0:00:08]} 57. Bd7 {[%clk 0:00:09]}  Rf2 {[%clk 0:00:08]} 58. Rb5+ {[%clk 0:00:09]}  Kd6 {[%clk 0:00:08]} 59. Rd5+ {[%clk 0:00:10]}  Ke7 {[%clk 0:00:08]} 60. Rxd4 {[%clk 0:00:10]}  Rxf3 {[%clk 0:00:08]} 61. a4 {[%clk 0:00:10]}  Rf4 {[%clk 0:00:05]} 62. a5 {[%clk 0:00:10]}  g4 {[%clk 0:00:05]} 63. Bxg4 {[%clk 0:00:08]}  Rxg4 {[%clk 0:00:04]} 64. a6 {[%clk 0:00:09]}  Rh4 {[%clk 0:00:05]} 65. b4 {[%clk 0:00:07]}  Rh8 {[%clk 0:00:04]} 66. b5 {[%clk 0:00:07]}  Ke6 {[%clk 0:00:04]} 67. b6 {[%clk 0:00:07]}  Ke5 {[%clk 0:00:05]} 68. Ra4 {[%clk 0:00:07]}  g5 {[%clk 0:00:05]} 69. a7 {[%clk 0:00:07]}  Ra8 {[%clk 0:00:04]} 70. b7 {[%clk 0:00:08]}  Rd8 {[%clk 0:00:03]} 71. b8=Q+ {[%clk 0:00:07]}  Kf6 {[%clk 0:00:02]} 72. Qxd8+ {[%clk 0:00:07]}  Kg6 {[%clk 0:00:03]} 73. a8=Q {[%clk 0:00:06]}  Kh5 {[%clk 0:00:04]} 74. e5 {[%clk 0:00:06]}  g4 {[%clk 0:00:03]} 75. Qh1+ {[%clk 0:00:05]}  Kg6 {[%clk 0:00:03]} 76. Qe4+ {[%clk 0:00:04]}  Kh5 {[%clk 0:00:03]} 77. Qxg4+ {[%clk 0:00:05]}  Kh6 {[%clk 0:00:03]} 78. Qh8# {[%clk 0:00:05]} 1-0


[Site "https://www.chess.com"]

[Event "Titled Tuesday Blitz April 18 Late 2023"]
[White "Marcziter, Dmitrii"]
[Black "Krishnan, Varun"]
[WhiteFideId "13900765"]
[BlackFideId "5054508"]
[WhiteElo "2162"]
[BlackElo "2593"]
[Result "0-1"]
[Round "06"]
[TimeControl "180+2"]
[Date "2023.04.18"]
[WhiteClock "0:00:57"]
[BlackClock "0:00:11"]

1. e4 {[%clk 0:03:00]}  e5 {[%clk 0:02:57]} 2. Nf3 {[%clk 0:03:00]}  Nc6 {[%clk 0:02:58]} 3. Bc4 {[%clk 0:03:00]}  Bc5 {[%clk 0:02:57]} 4. c3 {[%clk 0:03:00]}  Nf6 {[%clk 0:02:56]} 5. d4 {[%clk 0:03:00]}  exd4 {[%clk 0:02:56]} 6. b4 {[%clk 0:03:00]}  Bb6 {[%clk 0:02:47]} 7. e5 {[%clk 0:03:00]}  d5 {[%clk 0:02:44]} 8. exf6 {[%clk 0:03:01]}  dxc4 {[%clk 0:02:43]} 9. Qe2+ {[%clk 0:03:01]}  Be6 {[%clk 0:02:42]} 10. b5 {[%clk 0:03:01]}  d3 {[%clk 0:02:22]} 11. Qe4 {[%clk 0:02:59]}  Na5 {[%clk 0:02:04]} 12. fxg7 {[%clk 0:02:56]}  Rg8 {[%clk 0:02:04]} 13. Bg5 {[%clk 0:02:53]}  Qd5 {[%clk 0:01:53]} 14. Qxh7 {[%clk 0:02:52]}  Kd7 {[%clk 0:01:52]} 15. O-O {[%clk 0:02:41]}  Bg4 {[%clk 0:01:48]} 16. Nbd2 {[%clk 0:02:33]}  Rae8 {[%clk 0:01:28]} 17. h3 {[%clk 0:02:30]}  Bf5 {[%clk 0:01:25]} 18. Qh6 {[%clk 0:02:25]}  Re6 {[%clk 0:01:21]} 19. Bf6 {[%clk 0:02:19]}  Be4 {[%clk 0:00:51]} 20. Nxe4 {[%clk 0:02:00]}  Qxe4 {[%clk 0:00:47]} 21. Ng5 {[%clk 0:01:55]}  Qf4 {[%clk 0:00:39]} 22. Nxf7 {[%clk 0:01:45]}  Qxf6 {[%clk 0:00:33]} 23. Qxf6 {[%clk 0:01:34]}  Rxf6 {[%clk 0:00:34]} 24. Ne5+ {[%clk 0:01:34]}  Ke6 {[%clk 0:00:33]} 25. Rae1 {[%clk 0:01:33]}  Kd6 {[%clk 0:00:23]} 26. Ng4 {[%clk 0:01:29]}  Rg6 {[%clk 0:00:18]} 27. Re4 {[%clk 0:01:24]}  R8xg7 {[%clk 0:00:17]} 28. Rfe1 {[%clk 0:01:23]}  c6 {[%clk 0:00:16]} 29. a4 {[%clk 0:01:21]}  cxb5 {[%clk 0:00:16]} 30. axb5 {[%clk 0:01:22]}  Rf7 {[%clk 0:00:14]} 31. Kh2 {[%clk 0:01:13]}  Rfg7 {[%clk 0:00:15]} 32. g3 {[%clk 0:01:11]}  Bc5 {[%clk 0:00:12]} 33. Ne5 {[%clk 0:01:08]}  Bxf2 {[%clk 0:00:08]} 34. Nxg6 {[%clk 0:01:00]}  Bxe1 {[%clk 0:00:08]} 35. Rxe1 {[%clk 0:00:53]}  Rxg6 {[%clk 0:00:07]} 36. g4 {[%clk 0:00:53]}  d2 {[%clk 0:00:06]} 37. Rd1 {[%clk 0:00:52]}  Nb3 {[%clk 0:00:07]} 38. Kg3 {[%clk 0:00:52]}  Kc5 {[%clk 0:00:07]} 39. Kf4 {[%clk 0:00:51]}  Re6 {[%clk 0:00:06]} 40. Kf5 {[%clk 0:00:52]}  Re1 {[%clk 0:00:06]} 41. Rxd2 {[%clk 0:00:53]}  Nxd2 {[%clk 0:00:06]} 42. h4 {[%clk 0:00:53]}  Nf3 {[%clk 0:00:06]} 43. h5 {[%clk 0:00:53]}  Rf1 {[%clk 0:00:06]} 44. h6 {[%clk 0:00:52]}  Rh1 {[%clk 0:00:06]} 45. g5 {[%clk 0:00:51]}  Nxg5 {[%clk 0:00:06]} 46. Kxg5 {[%clk 0:00:51]}  Kxb5 {[%clk 0:00:06]} 47. Kg6 {[%clk 0:00:51]}  a5 {[%clk 0:00:06]} 48. h7 {[%clk 0:00:52]}  a4 {[%clk 0:00:06]} 49. Kg7 {[%clk 0:00:53]}  Rxh7+ {[%clk 0:00:05]} 50. Kxh7 {[%clk 0:00:53]}  a3 {[%clk 0:00:06]} 51. Kg6 {[%clk 0:00:53]}  a2 {[%clk 0:00:07]} 52. Kf5 {[%clk 0:00:54]}  a1=Q {[%clk 0:00:07]} 53. Ke4 {[%clk 0:00:55]}  Qxc3 {[%clk 0:00:07]} 54. Kd5 {[%clk 0:00:55]}  Qd3+ {[%clk 0:00:07]} 55. Ke6 {[%clk 0:00:56]}  c3 {[%clk 0:00:08]} 56. Kf7 {[%clk 0:00:56]}  c2 {[%clk 0:00:08]} 57. Kf6 {[%clk 0:00:57]}  c1=Q {[%clk 0:00:09]} 58. Ke6 {[%clk 0:00:56]}  Qe1+ {[%clk 0:00:10]} 59. Kf7 {[%clk 0:00:57]}  Qf3+ {[%clk 0:00:10]} 60. Kg6 {[%clk 0:00:58]}  Qg1+ {[%clk 0:00:11]} 61. Kh6 {[%clk 0:00:57]}  Qfh1# {[%clk 0:00:11]} 0-1


[Site "https://www.chess.com"]

[Event "Titled Tuesday Blitz April 18 Late 2023"]
[White "Petrovic, Aleksa"]
[Black "Szente Varga, Fruzsina"]
[WhiteFideId "967629"]
[BlackFideId "712264"]
[WhiteElo "2309"]
[BlackElo "1994"]
[Result "1-0"]
[Round "06"]
[TimeControl "180+2"]
[Date "2023.04.18"]
[WhiteClock "0:00:13"]
[BlackClock "0:00:07"]

1. d4 {[%clk 0:02:59]}  Nf6 {[%clk 0:02:59]} 2. c4 {[%clk 0:02:58]}  g6 {[%clk 0:03:00]} 3. Nc3 {[%clk 0:02:56]}  Bg7 {[%clk 0:02:59]} 4. e4 {[%clk 0:02:52]}  d6 {[%clk 0:03:00]} 5. Be2 {[%clk 0:02:51]}  O-O {[%clk 0:03:00]} 6. Bg5 {[%clk 0:02:50]}  h6 {[%clk 0:02:59]} 7. Be3 {[%clk 0:02:49]}  e5 {[%clk 0:02:59]} 8. d5 {[%clk 0:02:47]}  Nbd7 {[%clk 0:02:59]} 9. Qd2 {[%clk 0:02:46]}  Kh7 {[%clk 0:03:00]} 10. g4 {[%clk 0:02:44]}  Nc5 {[%clk 0:02:58]} 11. f3 {[%clk 0:02:43]}  Bd7 {[%clk 0:02:36]} 12. h4 {[%clk 0:02:41]}  Na4 {[%clk 0:02:28]} 13. Nxa4 {[%clk 0:02:16]}  Bxa4 {[%clk 0:02:29]} 14. b3 {[%clk 0:02:16]}  Bd7 {[%clk 0:02:29]} 15. O-O-O {[%clk 0:02:08]}  a6 {[%clk 0:02:20]} 16. Nh3 {[%clk 0:02:04]}  b5 {[%clk 0:02:18]} 17. c5 {[%clk 0:02:00]}  c6 {[%clk 0:01:11]} 18. dxc6 {[%clk 0:01:43]}  Bxc6 {[%clk 0:01:11]} 19. Qxd6 {[%clk 0:01:43]}  Qe8 {[%clk 0:01:12]} 20. h5 {[%clk 0:01:31]}  g5 {[%clk 0:01:11]} 21. Qc7 {[%clk 0:01:20]}  Rc8 {[%clk 0:01:07]} 22. Qa5 {[%clk 0:01:18]}  Bb7 {[%clk 0:00:52]} 23. Rd6 {[%clk 0:01:12]}  Nd7 {[%clk 0:00:51]} 24. b4 {[%clk 0:01:05]}  Qe7 {[%clk 0:00:46]} 25. Rhd1 {[%clk 0:01:02]}  Nb8 {[%clk 0:00:40]} 26. a3 {[%clk 0:00:44]}  Bf6 {[%clk 0:00:24]} 27. Kb2 {[%clk 0:00:34]}  Kg7 {[%clk 0:00:23]} 28. Nf2 {[%clk 0:00:32]}  Rc7 {[%clk 0:00:20]} 29. Nh1 {[%clk 0:00:32]}  Nc6 {[%clk 0:00:19]} 30. Qb6 {[%clk 0:00:29]}  a5 {[%clk 0:00:19]} 31. Ng3 {[%clk 0:00:29]}  Bc8 {[%clk 0:00:10]} 32. Rxc6 {[%clk 0:00:28]}  Rxc6 {[%clk 0:00:09]} 33. Qxc6 {[%clk 0:00:28]}  axb4 {[%clk 0:00:10]} 34. axb4 {[%clk 0:00:28]}  Be6 {[%clk 0:00:11]} 35. Nf5+ {[%clk 0:00:28]}  Bxf5 {[%clk 0:00:11]} 36. gxf5 {[%clk 0:00:28]}  Rb8 {[%clk 0:00:10]} 37. Rd7 {[%clk 0:00:28]}  Qe8 {[%clk 0:00:11]} 38. Rd6 {[%clk 0:00:28]}  Qe7 {[%clk 0:00:10]} 39. Qd7 {[%clk 0:00:28]}  Qf8 {[%clk 0:00:10]} 40. Bd1 {[%clk 0:00:26]}  Be7 {[%clk 0:00:10]} 41. f6+ {[%clk 0:00:24]}  Bxf6 {[%clk 0:00:10]} 42. Bb3 {[%clk 0:00:24]}  Be7 {[%clk 0:00:10]} 43. Rc6 {[%clk 0:00:20]}  Rd8 {[%clk 0:00:10]} 44. Qf5 {[%clk 0:00:18]}  Rd3 {[%clk 0:00:10]} 45. Bc1 {[%clk 0:00:16]}  Qd8 {[%clk 0:00:07]} 46. Qxf7+ {[%clk 0:00:13]}  Kh8 {[%clk 0:00:07]} 47. Rxh6# {[%clk 0:00:13]} 1-0


[Site "https://www.chess.com"]

[Event "Titled Tuesday Blitz April 18 Late 2023"]
[White "Todorovic, Bojan"]
[Black "Rios Escobar, Adan"]
[WhiteFideId "917087"]
[BlackFideId "3403645"]
[WhiteElo "2266"]
[BlackElo "2482"]
[Result "0-1"]
[Round "06"]
[TimeControl "180+2"]
[Date "2023.04.18"]
[WhiteClock "0:00:02"]
[BlackClock "0:00:34"]

1. Nf3 {[%clk 0:02:59]}  Nf6 {[%clk 0:03:00]} 2. g3 {[%clk 0:02:58]}  g6 {[%clk 0:03:00]} 3. Bg2 {[%clk 0:02:59]}  c5 {[%clk 0:02:58]} 4. O-O {[%clk 0:02:58]}  Bg7 {[%clk 0:02:59]} 5. c4 {[%clk 0:02:55]}  O-O {[%clk 0:02:59]} 6. Nc3 {[%clk 0:02:55]}  Nc6 {[%clk 0:02:59]} 7. d3 {[%clk 0:02:53]}  Rb8 {[%clk 0:02:58]} 8. Be3 {[%clk 0:02:46]}  d6 {[%clk 0:02:46]} 9. h3 {[%clk 0:02:46]}  a6 {[%clk 0:02:45]} 10. d4 {[%clk 0:02:45]}  cxd4 {[%clk 0:02:33]} 11. Nxd4 {[%clk 0:02:44]}  Bd7 {[%clk 0:02:29]} 12. Rc1 {[%clk 0:02:40]}  Qa5 {[%clk 0:02:18]} 13. Nb3 {[%clk 0:02:10]}  Qh5 {[%clk 0:02:14]} 14. g4 {[%clk 0:02:09]}  Bxg4 {[%clk 0:02:12]} 15. hxg4 {[%clk 0:02:09]}  Nxg4 {[%clk 0:02:13]} 16. Bf4 {[%clk 0:02:09]}  Be5 {[%clk 0:02:13]} 17. Qd2 {[%clk 0:02:05]}  g5 {[%clk 0:02:13]} 18. Bxe5 {[%clk 0:01:57]}  dxe5 {[%clk 0:02:14]} 19. Rfd1 {[%clk 0:01:48]}  f5 {[%clk 0:02:00]} 20. Qd5+ {[%clk 0:01:16]}  Kg7 {[%clk 0:01:58]} 21. Nc5 {[%clk 0:01:14]}  Rf6 {[%clk 0:01:50]} 22. Ne6+ {[%clk 0:00:57]}  Kh8 {[%clk 0:01:47]} 23. a3 {[%clk 0:00:29]}  Qh2+ {[%clk 0:01:46]} 24. Kf1 {[%clk 0:00:28]}  Qh4 {[%clk 0:01:47]} 25. Ke1 {[%clk 0:00:17]}  Qxf2+ {[%clk 0:01:39]} 26. Kd2 {[%clk 0:00:17]}  Rxe6 {[%clk 0:01:34]} 27. Qxe6 {[%clk 0:00:14]}  Nd4 {[%clk 0:01:18]} 28. Qxe7 {[%clk 0:00:07]}  Qe3+ {[%clk 0:01:12]} 29. Ke1 {[%clk 0:00:07]}  Qf2+ {[%clk 0:01:01]} 30. Kd2 {[%clk 0:00:07]}  Qxg2 {[%clk 0:00:58]} 31. Rf1 {[%clk 0:00:04]}  Qg3 {[%clk 0:00:53]} 32. Qxg5 {[%clk 0:00:03]}  Rg8 {[%clk 0:00:49]} 33. Qe7 {[%clk 0:00:02]}  Qe3+ {[%clk 0:00:49]} 34. Ke1 {[%clk 0:00:02]}  Qxc1+ {[%clk 0:00:34]} 0-1


[Site "https://www.chess.com"]